bitfinex-derivatives/quotes_BTCF0:USTF0_20250325
["timestamp","ask_amount","ask_price","bid_price","bid_amount"]
[1742904304191,0.1558377,87351.0,87350.0,0.6995682]
[1742904305185,0.15679771,87351.0,87350.0,0.6995682]
[1742904306189,0.12459771,87351.0,87350.0,0.6995682]
[1742904306488,0.1236377,87351.0,87350.0,0.6995682]
[1742904307783,0.1144669,87351.0,87350.0,0.6995682]
[1742904309375,0.1468669,87351.0,87350.0,0.5851]
[1742904309578,0.1803669,87351.0,87350.0,0.3051]
[1742904309884,0.19026362,87351.0,87350.0,0.3051]
[1742904310387,0.20177183,87351.0,87350.0,0.3051]
[1742904310889,0.19026362,87351.0,87350.0,0.3051]
[1742904319787,0.19026362,87351.0,87350.0,0.2406]
[1742904320593,0.114476,87344.0,87343.0,0.00045796]
[1742904320792,0.11555601,87344.0,87343.0,0.00105796]
[1742904320984,0.11555601,87344.0,87343.0,0.00045796]
[1742904321185,0.18893273,87344.0,87343.0,0.24045796]
[1742904321496,0.18893273,87344.0,87343.0,0.24113796]
[1742904322286,0.18893273,87344.0,87343.0,0.23113796]
[1742904322494,0.18893273,87344.0,87343.0,0.00113796]
[1742904322793,0.18893273,87344.0,87343.0,0.00045796]
[1742904322996,0.18893273,87344.0,87343.0,0.27045796]
[1742904323192,0.18893273,87344.0,87343.0,0.27105796]
[1742904324598,0.19805459,87344.0,87343.0,0.27105796]
[1742904326196,0.19805459,87344.0,87343.0,0.33705796]
[1742904326401,0.19805459,87344.0,87343.0,0.61705796]
[1742904326596,0.4667261,87363.0,87351.0,0.0572334]
[1742904326801,0.1462442,87353.0,87352.0,0.1804656]
[1742904327006,0.1461642,87353.0,87352.0,0.60938]
[1742904327306,0.1469242,87353.0,87352.0,0.60938]
[1742904329005,0.1469242,87353.0,87352.0,0.7238456]
[1742904329204,0.1469242,87353.0,87352.0,0.64938]
[1742904330297,0.1785242,87353.0,87352.0,0.64938]
[1742904333908,0.5393242,87353.0,87352.0,0.03428]
[1742904334117,0.1144721,87347.0,87346.0,0.0662]
[1742904334301,0.1152321,87347.0,87346.0,0.5668]
[1742904334503,0.2171321,87347.0,87346.0,0.3068]
[1742904336812,0.2171321,87347.0,87346.0,1.0320734]
[1742904337013,0.00076,87347.0,87346.0,1.0320734]
[1742904337207,0.0572354,87348.0,87347.0,0.1717048]
[1742904337399,0.0572354,87348.0,87347.0,0.7323848]
[1742904337602,0.0572354,87348.0,87347.0,0.7980848]
[1742904338008,0.1717062,87348.0,87347.0,0.7980848]
[1742904339107,0.1725062,87348.0,87347.0,0.7980848]
[1742904341718,0.18146249,87348.0,87347.0,0.7980848]
[1742904342118,0.21666249,87348.0,87347.0,0.7980848]
[1742904342917,0.21666249,87348.0,87347.0,0.6636153]
[1742904343223,0.21666249,87348.0,87347.0,0.33638]
[1742904343411,0.21666249,87348.0,87347.0,0.4508521]
[1742904343619,0.25026249,87348.0,87347.0,0.4508521]
[1742904344115,0.25026249,87348.0,87347.0,0.6908521]
[1742904344303,0.25026249,87348.0,87347.0,0.4508521]
[1742904345017,0.25026249,87348.0,87347.0,0.00068]
[1742904345212,0.114476,87344.0,87343.0,0.00045796]
[1742904345414,0.114476,87344.0,87337.0,0.00110173]
[1742904345415,0.1144813,87340.0,87328.0,0.00185705]
[1742904345718,0.1144983,87327.0,87322.0,0.00222801]
[1742904345908,0.23281831,87327.0,87323.0,0.0371886]
[1742904346102,0.23281831,87327.0,87326.0,0.03529687]
[1742904346316,0.23281831,87327.0,87326.0,0.06899687]
[1742904346520,0.2417746,87327.0,87326.0,0.06899687]
[1742904347212,0.25348004,87327.0,87326.0,0.06899687]
[1742904347411,0.25348004,87327.0,87326.0,0.00189687]
[1742904348316,0.1144996,87326.0,87323.0,0.0022886]
[1742904348519,0.11545961,87326.0,87325.0,0.00269112]
[1742904348908,0.13575961,87326.0,87325.0,0.00269112]
[1742904349518,0.13575961,87326.0,87325.0,0.00209112]
[1742904350009,0.13675961,87326.0,87325.0,0.00209112]
[1742904351012,0.11745961,87326.0,87325.0,0.00209112]
[1742904351217,0.11745961,87326.0,87325.0,0.06989112]
[1742904351412,0.11745961,87326.0,87325.0,0.36102639]
[1742904351730,0.11745961,87326.0,87325.0,1.66997112]
[1742904352116,0.12644233,87326.0,87325.0,1.66997112]
[1742904352516,0.12644233,87326.0,87325.0,1.79997112]
[1742904352822,0.11745961,87326.0,87325.0,1.66997112]
[1742904353419,0.17314361,87326.0,87325.0,1.66997112]
[1742904353814,0.17214361,87326.0,87325.0,1.56997112]
[1742904354222,0.17214361,87326.0,87325.0,1.66997112]
[1742904354421,0.17214361,87326.0,87325.0,1.56997112]
[1742904354720,0.05764401,87326.0,87325.0,1.78447212]
[1742904355022,0.1701836,87326.0,87325.0,1.78447212]
[1742904355926,0.1701836,87326.0,87325.0,1.66997112]
[1742904355927,0.17122361,87326.0,87325.0,1.66997112]
[1742904358826,0.17122361,87326.0,87325.0,1.42941267]
[1742904359017,0.1801957,87326.0,87325.0,1.43001267]
[1742904359233,0.1801957,87326.0,87325.0,0.0006]
[1742904359414,0.114501,87325.0,87324.0,0.00205613]
[1742904359609,0.115661,87325.0,87324.0,0.28205613]
[1742904359814,0.115661,87325.0,87324.0,0.63715843]
[1742904360025,0.115661,87325.0,87324.0,0.52265613]
[1742904360326,0.115661,87325.0,87324.0,0.28265613]
[1742904360827,0.115661,87325.0,87324.0,0.39715843]
[1742904361121,0.115661,87325.0,87324.0,0.52265613]
[1742904361424,0.115661,87325.0,87324.0,0.28265613]
[1742904362013,0.115661,87325.0,87324.0,0.34875613]
[1742904362825,0.115661,87325.0,87324.0,0.61875613]
[1742904363024,0.115661,87325.0,87324.0,0.34875613]
[1742904363824,0.171345,87325.0,87324.0,0.34875613]
[1742904364125,0.171345,87325.0,87324.0,0.14255235]
[1742904366134,0.171345,87325.0,87324.0,0.0667]
[1742904366430,0.171345,87325.0,87324.0,0.3361]
[1742904366633,0.171345,87325.0,87324.0,0.33674]
[1742904367330,0.171345,87325.0,87324.0,0.06674]
[1742904367530,0.171345,87325.0,87324.0,0.0661]
[1742904367730,0.206445,87325.0,87324.0,0.0661]
[1742904368427,0.171345,87325.0,87324.0,0.06726]
[1742904368625,0.171345,87325.0,87324.0,0.0661]
[1742904368830,0.171345,87325.0,87324.0,0.0667]
[1742904369033,0.171345,87325.0,87324.0,0.3367]
[1742904370121,0.34124039,87325.0,87324.0,0.3367]
[1742904370618,0.34124039,87325.0,87324.0,0.26990569]
[1742904370820,0.34124039,87325.0,87324.0,0.27058569]
[1742904371225,0.34124039,87325.0,87324.0,0.00068]
[1742904371432,0.1145023,87324.0,87323.0,0.0022886]
[1742904371627,0.1145023,87324.0,87323.0,0.0029286]
[1742904371824,0.1848623,87324.0,87323.0,0.0029286]
[1742904373729,0.1848623,87324.0,87323.0,0.0722286]
[1742904373924,0.1848623,87324.0,87323.0,0.0715886]
[1742904375727,0.07036,87324.0,87312.0,0.00314593]
[1742904375934,0.1145167,87313.0,87312.0,0.00374593]
[1742904376135,0.0572596,87311.0,87303.0,0.00362462]
[1742904376329,0.1145272,87305.0,87303.0,0.00362462]
[1742904376523,0.11608721,87305.0,87303.0,0.00362462]
[1742904376729,0.1145285,87304.0,87303.0,0.00362462]
[1742904377037,0.1145298,87303.0,87302.0,0.00377508]
[1742904377330,0.1161298,87303.0,87302.0,0.00377508]
[1742904377530,0.65546443,87303.0,87286.0,0.0339]
[1742904377736,0.1145508,87287.0,87286.0,0.0339]
[1742904377940,0.1160708,87287.0,87286.0,0.2839]
[1742904378129,0.1160708,87287.0,87286.0,0.5084521]
[1742904378431,0.12354952,87287.0,87286.0,0.6384521]
[1742904378728,0.12354952,87287.0,87286.0,0.2839]
[1742904378924,0.12510953,87287.0,87286.0,0.2839]
[1742904379120,0.12510953,87287.0,87286.0,0.5639]
[1742904379430,0.12354952,87287.0,87286.0,0.6684521]
[1742904379638,0.12354952,87287.0,87286.0,0.6284521]
[1742904379823,0.1145508,87287.0,87286.0,0.2839]
[1742904380024,0.1145508,87287.0,87286.0,0.0339]
[1742904380238,0.1160708,87287.0,87286.0,0.0339]
[1742904380425,0.1847708,87287.0,87286.0,0.0339]
[1742904381538,0.4457538,87287.0,87286.0,0.0339]
[1742904382437,0.11456,87280.0,87279.0,0.0004583]
[1742904382637,0.48590122,87280.0,87279.0,0.0004583]
[1742904383036,0.49513868,87280.0,87279.0,0.0678583]
[1742904383232,0.56503868,87280.0,87279.0,1e-08]
[1742904383427,0.56503868,87280.0,87277.0,0.0358]
[1742904383428,0.1145626,87278.0,87277.0,0.0358]
[1742904383631,0.12506381,87278.0,87277.0,0.0358]
[1742904384536,0.13430127,87278.0,87277.0,0.0358]
[1742904385733,0.12532006,87278.0,87277.0,0.0358]
[1742904386135,0.12532006,87278.0,87277.0,0.4303639]
[1742904386436,0.12632006,87278.0,87277.0,0.7003639]
[1742904386740,0.12480006,87278.0,87277.0,2.2003639]
[1742904386936,0.12480006,87278.0,87277.0,0.7003639]
[1742904387143,0.12636007,87278.0,87277.0,0.7786639]
[1742904387344,0.12480006,87278.0,87277.0,0.7586639]
[1742904387638,0.12480006,87278.0,87273.0,0.3608]
[1742904387639,0.1145679,87274.0,87273.0,0.3608]
[1742904387825,0.1160879,87274.0,87273.0,0.3808]
[1742904389538,0.1160879,87274.0,87273.0,0.02]
[1742904391241,0.1877879,87274.0,87273.0,0.02]
[1742904397548,0.1145718,87271.0,87270.0,0.0705]
[1742904397752,0.1160918,87271.0,87270.0,0.0905]
[1742904397938,0.1884918,87271.0,87270.0,0.0905]
[1742904407248,0.1884918,87271.0,87259.0,0.01166251]
[1742904407249,0.114602,87248.0,87224.0,0.3608]
[1742904407549,0.475402,87248.0,87247.0,0.04]
[1742904407735,0.47696201,87248.0,87247.0,0.04]
[1742904407942,0.47696201,87248.0,87234.0,0.01138916]
[1742904407943,0.1146099,87242.0,87241.0,0.3608]
[1742904408245,0.05746817,87256.0,87242.0,0.0341]
[1742904408436,0.0348,87255.0,87242.0,0.2941]
[1742904408747,0.1146807,87249.0,87248.0,0.3608]
[1742904408952,0.11616071,87249.0,87248.0,0.705402]
[1742904409149,0.11616071,87249.0,87248.0,0.3608]
[1742904409339,0.11616071,87249.0,87248.0,0.4316]
[1742904409948,0.11616071,87249.0,87248.0,0.43316414]
[1742904410750,0.11616071,87249.0,87248.0,0.54776614]
[1742904410952,0.11616071,87249.0,87248.0,0.79776614]
[1742904411136,0.11616071,87249.0,87248.0,0.43316414]
[1742904412054,0.11616071,87249.0,87248.0,0.54776614]
[1742904412350,0.00156001,87249.0,87248.0,0.75776614]
[1742904412552,0.11484467,87256.0,87255.0,0.1145928]
[1742904412748,0.00177187,87256.0,87255.0,0.8979328]
[1742904412947,0.11476337,87256.0,87255.0,1.17359694]
[1742904413255,0.00017187,87256.0,87255.0,0.08059627]
[1742904413461,0.1627142,87256.0,87255.0,0.00156414]
[1742904413658,0.5575142,87256.0,87255.0,0.00156414]
[1742904413837,0.54578337,87256.0,87255.0,0.00156414]
[1742904415042,0.54678337,87256.0,87255.0,0.00156414]
[1742904415247,0.54778337,87256.0,87255.0,0.00156414]
[1742904415947,0.54678337,87256.0,87255.0,0.00156414]
[1742904416138,0.54778337,87256.0,87255.0,0.00156414]
[1742904416341,0.60351044,87256.0,87255.0,0.00156414]
[1742904417352,0.17401044,87256.0,87255.0,0.37615694]
[1742904417537,0.05941894,87256.0,87255.0,0.37615694]
[1742904417741,0.17401044,87256.0,87255.0,0.34086414]
[1742904417937,0.17401044,87256.0,87255.0,0.07086414]
[1742904418355,0.20911044,87256.0,87255.0,0.07086414]
[1742904419459,0.20811044,87256.0,87255.0,0.34086414]
[1742904419758,0.56891044,87256.0,87255.0,0.07086414]
[1742904419940,0.24281044,87256.0,87255.0,0.17086414]
[1742904420146,0.17201044,87256.0,87255.0,0.17086414]
[1742904420348,0.17201044,87256.0,87255.0,0.28545694]
[1742904420554,0.17201044,87256.0,87255.0,0.41545694]
[1742904420756,0.17201044,87256.0,87255.0,0.30086414]
[1742904421152,0.17201044,87256.0,87255.0,0.57086414]
[1742904421353,0.3337445,87256.0,87255.0,0.57086414]
[1742904421551,0.3337445,87256.0,87255.0,0.41545694]
[1742904421761,0.3337445,87256.0,87255.0,0.30086414]
[1742904422858,0.3337445,87256.0,87255.0,0.41545694]
[1742904423455,0.3337445,87256.0,87255.0,0.30086414]
[1742904423658,0.3337445,87256.0,87255.0,0.07086414]
[1742904423958,0.4043445,87256.0,87255.0,0.34086414]
[1742904424351,0.4043445,87256.0,87255.0,0.13449864]
[1742904424656,0.3337445,87256.0,87255.0,0.24909144]
[1742904424862,0.3337445,87256.0,87255.0,0.48909144]
[1742904425556,0.219153,87256.0,87255.0,0.48909144]
[1742904425755,0.217633,87256.0,87255.0,0.48909144]
[1742904426163,0.219233,87256.0,87255.0,0.48909144]
[1742904427250,0.3338245,87256.0,87255.0,0.48909144]
[1742904427763,0.3338245,87256.0,87255.0,0.55819144]
[1742904427956,0.3702245,87256.0,87255.0,0.55819144]
[1742904428462,0.3702245,87256.0,87255.0,0.31819144]
[1742904429364,0.3702245,87256.0,87255.0,0.42819144]
[1742904429763,0.255633,87256.0,87255.0,0.42819144]
[1742904430060,0.05749894,87256.0,87255.0,0.52819144]
[1742904430266,0.05589894,87256.0,87255.0,0.52819144]
[1742904430465,0.05589894,87256.0,87255.0,0.42819144]
[1742904430664,0.05589894,87256.0,87255.0,1.90819144]
[1742904431971,0.05589894,87256.0,87255.0,2.02819144]
[1742904432464,0.20549977,87263.0,87262.0,0.1145836]
[1742904432667,0.0572795,87281.0,87265.0,0.0572898]
[1742904432871,0.0362,87273.0,87271.0,0.4753718]
[1742904433064,0.0362,87273.0,87271.0,2.5565718]
[1742904433261,0.03628,87273.0,87271.0,2.5565718]
[1742904433869,0.03628,87273.0,87271.0,2.56787393]
[1742904434059,0.0034,87272.0,87271.0,2.56787393]
[1742904434464,0.0034,87272.0,87271.0,2.57638863]
[1742904436066,0.0074,87272.0,87271.0,2.57638863]
[1742904437271,0.0044,87272.0,87271.0,2.57638863]
[1742904439374,0.0024,87272.0,87271.0,2.57638863]
[1742904440369,0.0024,87272.0,87271.0,2.74762863]
[1742904440572,0.0367,87272.0,87271.0,2.74762863]
[1742904440772,0.0722,87272.0,87271.0,2.74762863]
[1742904442569,0.0722,87272.0,87271.0,2.57638863]
[1742904442973,0.0722,87272.0,87271.0,2.74634863]
[1742904445275,0.0722,87272.0,87271.0,2.50578863]
[1742904445478,0.1867705,87272.0,87271.0,0.3699147]
[1742904445679,0.18789051,87272.0,87271.0,0.5044865]
[1742904447878,0.07332001,87272.0,87271.0,0.6044865]
[1742904448066,0.07332001,87272.0,87271.0,0.5044865]
[1742904449182,0.07332001,87272.0,87271.0,0.7844865]
[1742904449383,0.12903232,87272.0,87271.0,0.5044865]
[1742904449578,0.12903232,87272.0,87271.0,0.5244865]
[1742904449777,0.12903232,87272.0,87271.0,0.5159718]
[1742904451185,0.24360282,87272.0,87271.0,0.5159718]
[1742904453189,0.18789051,87272.0,87271.0,0.5159718]
[1742904454888,0.07332001,87272.0,87271.0,0.5159718]
[1742904455087,0.18789051,87272.0,87271.0,0.5159718]
[1742904456583,0.07332001,87272.0,87271.0,0.5159718]
[1742904456786,0.0722,87272.0,87271.0,0.5862718]
[1742904457178,0.0722,87272.0,87271.0,2.0862718]
[1742904457575,0.20559481,87277.0,87273.0,0.0572841]
[1742904457779,0.00017187,87280.0,87277.0,0.0572819]
[1742904457979,0.00017187,87280.0,87279.0,0.1145613]
[1742904458276,0.00017187,87280.0,87279.0,0.7618613]
[1742904458975,0.00017187,87280.0,87279.0,0.5018613]
[1742904459183,0.00017187,87280.0,87279.0,0.7518613]
[1742904459490,0.00117187,87280.0,87279.0,0.7518613]
[1742904459676,0.00117187,87280.0,87279.0,0.7818613]
[1742904460687,0.00317187,87280.0,87279.0,0.7818613]
[1742904460888,0.03977187,87280.0,87279.0,0.7818613]
[1742904461089,0.07467187,87280.0,87279.0,0.7818613]
[1742904462484,0.13037216,87280.0,87279.0,0.7818613]
[1742904465677,0.07467187,87280.0,87279.0,0.7818613]
[1742904466083,0.03911188,87280.0,87279.0,0.7818613]
[1742904466389,0.03807187,87280.0,87279.0,0.7818613]
[1742904466587,0.03911188,87280.0,87279.0,0.7818613]
[1742904466792,0.03807187,87280.0,87279.0,0.7818613]
[1742904466986,0.03911188,87280.0,87279.0,0.7818613]
[1742904467991,0.03911188,87280.0,87279.0,1.6139013]
[1742904468195,0.03807187,87280.0,87279.0,1.6139013]
[1742904469786,0.03807187,87280.0,87279.0,1.9747013]
[1742904473282,0.03807187,87280.0,87279.0,2.1318613]
[1742904479197,0.23962918,87296.0,87295.0,0.1145403]
[1742904479400,0.23962918,87296.0,87295.0,1.5212603]
[1742904479594,0.24074919,87296.0,87295.0,3.0218603]
[1742904479794,0.23962918,87296.0,87295.0,3.1262603]
[1742904479997,0.23962918,87296.0,87295.0,3.1376973]
[1742904480391,0.00626004,87296.0,87295.0,3.1376973]
[1742904480592,0.00926004,87296.0,87295.0,3.1376973]
[1742904481302,0.00057187,87304.0,87298.0,0.0572681]
[1742904481503,0.0348,87303.0,87300.0,0.1145337]
[1742904481701,0.0348,87303.0,87300.0,0.6051337]
[1742904481900,0.00104001,87301.0,87300.0,0.6752337]
[1742904482099,0.0348,87303.0,87302.0,0.1145311]
[1742904482398,0.0348,87303.0,87302.0,0.9959311]
[1742904482602,0.0348,87303.0,87302.0,1.0660311]
[1742904483505,0.0388,87303.0,87302.0,1.0660311]
[1742904483704,0.04484001,87303.0,87302.0,2.5660311]
[1742904484001,0.0438,87303.0,87302.0,2.5660311]
[1742904484797,0.0791,87303.0,87302.0,2.5660311]
[1742904488406,0.0741,87303.0,87302.0,2.5690311]
[1742904489208,0.0701,87303.0,87302.0,2.5690311]
[1742904489409,0.0701,87303.0,87302.0,2.5720311]
[1742904493907,0.0701,87303.0,87302.0,2.7217511]
[1742904495215,0.0701,87303.0,87302.0,2.2017511]
[1742904495419,0.0701,87303.0,87302.0,2.7217511]
[1742904497318,0.20708396,87303.0,87302.0,2.7217511]
[1742904497519,0.32161376,87303.0,87302.0,2.5019311]
[1742904497721,0.1145416,87294.0,87293.0,0.3608]
[1742904497923,0.11578161,87294.0,87293.0,0.3714]
[1742904498126,0.11578161,87294.0,87293.0,0.6214]
[1742904498425,0.22218161,87294.0,87293.0,0.5914]
[1742904498721,0.22218161,87294.0,87293.0,0.7059429]
[1742904498925,0.22218161,87294.0,87293.0,0.72749824]
[1742904499119,0.22218161,87294.0,87293.0,0.73249824]
[1742904499421,0.22218161,87294.0,87293.0,0.7209429]
[1742904499617,0.22218161,87294.0,87293.0,0.7249429]
[1742904499618,0.22318161,87294.0,87293.0,0.7249429]
[1742904500523,0.07304001,87294.0,87293.0,0.97633982]
[1742904500719,0.1274977,87294.0,87293.0,1.08013982]
[1742904501514,0.12873771,87294.0,87293.0,1.08013982]
[1742904502228,0.12873771,87294.0,87293.0,1.22749982]
[1742904503727,0.07304001,87294.0,87293.0,1.22749982]
[1742904504923,0.07304001,87294.0,87293.0,1.12269982]
[1742904505325,0.07304001,87294.0,87293.0,2.62269982]
[1742904505520,0.0718,87294.0,87293.0,2.62269982]
[1742904505828,0.0718,87294.0,87293.0,2.65819982]
[1742904506127,0.0718,87294.0,87293.0,1.19469982]
[1742904506319,0.1876216,87294.0,87293.0,1.19469982]
[1742904506725,0.1863416,87294.0,87293.0,1.19469982]
[1742904507314,0.18758161,87294.0,87293.0,1.19469982]
[1742904507721,0.1863416,87294.0,87293.0,1.19469982]
[1742904508226,0.1853416,87294.0,87293.0,1.19269982]
[1742904508823,0.0708,87294.0,87293.0,1.19269982]
[1742904509432,0.1853416,87294.0,87293.0,1.19269982]
[1742904509928,0.0708,87294.0,87293.0,1.18969982]
[1742904511831,0.10951193,87295.0,87294.0,0.1145416]
[1742904512023,0.10951193,87295.0,87294.0,0.6553416]
[1742904513121,0.10951193,87295.0,87294.0,0.6573416]
[1742904513431,8e-05,87298.0,87297.0,0.1145377]
[1742904513634,8e-05,87298.0,87297.0,1.0259377]
[1742904513834,8e-05,87298.0,87297.0,1.0938377]
[1742904514336,8e-05,87298.0,87297.0,1.2373177]
[1742904514822,8e-05,87298.0,87297.0,1.2393177]
[1742904515134,8e-05,87298.0,87297.0,1.2413177]
[1742904524338,8e-05,87298.0,87297.0,1.2383977]
[1742904525238,8e-05,87298.0,87297.0,1.0978377]
[1742904525441,8e-05,87298.0,87297.0,1.2381977]
[1742904526539,8e-05,87298.0,87297.0,1.2379577]
[1742904526724,0.1146164,87298.0,87297.0,1.0299377]
[1742904526928,0.1146164,87298.0,87297.0,1.05552]
[1742904527140,0.1836164,87298.0,87297.0,1.05552]
[1742904527336,0.06908,87298.0,87297.0,1.1700577]
[1742904529138,0.1836164,87298.0,87297.0,1.1695777]
[1742904529637,0.1836164,87298.0,87297.0,1.05492]
[1742904529846,0.18485641,87298.0,87297.0,1.1694577]
[1742904530233,0.18485641,87298.0,87297.0,0.3654]
[1742904530543,0.18485641,87298.0,87297.0,0.0046]
[1742904531330,0.18485641,87298.0,87297.0,0.004]
[1742904531734,0.18485641,87298.0,87297.0,0.00464]
[1742904532236,0.18485641,87298.0,87287.0,0.00017187]
[1742904532237,0.1145495,87288.0,87287.0,0.00017187]
[1742904532432,0.1145495,87288.0,87287.0,0.28077187]
[1742904532627,0.22004951,87288.0,87287.0,0.28077187]
[1742904532841,0.2186495,87288.0,87287.0,0.28077187]
[1742904533142,0.2186495,87288.0,87287.0,0.29219662]
[1742904533541,0.2186495,87288.0,87287.0,0.29419662]
[1742904535559,0.2200895,87288.0,87287.0,0.29419662]
[1742904539134,0.2200895,87288.0,87287.0,0.54419662]
[1742904539541,0.2200895,87288.0,87287.0,0.29419662]
[1742904539850,0.2200895,87288.0,87287.0,0.58419662]
[1742904540150,0.2200895,87288.0,87287.0,0.53419662]
[1742904540751,0.2200895,87288.0,87287.0,0.52419662]
[1742904541051,0.2200895,87288.0,87287.0,0.29419662]
[1742904541645,0.2200895,87288.0,87287.0,0.54419662]
[1742904541848,0.2200895,87288.0,87287.0,0.29419662]
[1742904542152,0.2200895,87288.0,87287.0,0.28277187]
[1742904542352,0.2200895,87288.0,87287.0,0.29408877]
[1742904542752,0.2201295,87288.0,87287.0,0.29408877]
[1742904543554,0.2201295,87288.0,87287.0,0.56408877]
[1742904543851,0.2201295,87288.0,87287.0,0.55408877]
[1742904544241,0.2201295,87288.0,87287.0,0.29408877]
[1742904546148,0.2201295,87288.0,87287.0,0.53408877]
[1742904546352,0.2201295,87288.0,87287.0,0.54408877]
[1742904546651,0.2201295,87288.0,87287.0,0.29408877]
[1742904546852,0.2201295,87288.0,87287.0,0.28277187]
[1742904555348,0.27583456,87288.0,87287.0,0.28277187]
[1742904559445,0.42560545,87288.0,87287.0,0.28277187]
[1742904559648,0.42552546,87288.0,87287.0,0.28277187]
[1742904559848,0.20687596,87288.0,87287.0,0.63732267]
[1742904560056,0.20547595,87288.0,87287.0,0.70662267]
[1742904561355,0.20691595,87288.0,87287.0,0.70662267]
[1742904561556,0.20547595,87288.0,87287.0,0.70662267]
[1742904562347,0.20687596,87288.0,87287.0,0.70662267]
[1742904562549,0.20547595,87288.0,87287.0,0.70662267]
[1742904565150,8e-05,87289.0,87288.0,0.1145495]
[1742904565360,0.00148001,87289.0,87288.0,0.6551495]
[1742904565575,0.00148001,87289.0,87288.0,0.7241495]
[1742904566760,8e-05,87289.0,87288.0,0.7241495]
[1742904567346,8e-05,87289.0,87288.0,0.8556295]
[1742904567545,0.00152,87289.0,87288.0,0.8556295]
[1742904568359,0.03532,87289.0,87288.0,0.8556295]
[1742904568562,0.06942,87289.0,87288.0,0.8556295]
[1742904570755,0.1839682,87289.0,87288.0,0.7241495]
[1742904570960,0.1839682,87289.0,87288.0,0.8549095]
[1742904571162,0.1839682,87289.0,87288.0,0.8548295]
[1742904571566,0.1839682,87289.0,87288.0,0.5848295]
[1742904572958,0.1839682,87289.0,87288.0,0.8648295]
[1742904573659,0.1839682,87289.0,87288.0,0.5848295]
[1742904573861,0.1839682,87289.0,87288.0,0.8348295]
[1742904574261,0.1839682,87289.0,87288.0,0.7041495]
[1742904575054,0.1839682,87289.0,87288.0,0.2706]
[1742904575254,0.1145574,87282.0,87278.0,0.12988]
[1742904575562,0.1145574,87282.0,87281.0,1.07184]
[1742904575770,0.2256974,87282.0,87281.0,0.83184]
[1742904576263,0.2256974,87282.0,87281.0,1.06184]
[1742904576762,0.2266974,87282.0,87281.0,1.06184]
[1742904576967,0.2276974,87282.0,87281.0,0.23]
[1742904577366,0.23899288,87282.0,87281.0,0.23]
[1742904578256,0.1145613,87279.0,87278.0,0.0364]
[1742904578467,0.1161613,87279.0,87278.0,0.3505]
[1742904578662,0.1893613,87279.0,87278.0,0.3505]
[1742904580167,0.1903613,87279.0,87278.0,0.3505]
[1742904580352,0.1913613,87279.0,87278.0,0.3505]
[1742904580960,0.1913613,87279.0,87278.0,0.6305]
[1742904581161,0.1913613,87279.0,87278.0,0.4650626]
[1742904581865,0.1913613,87279.0,87278.0,0.3505]
[1742904582061,0.1913613,87279.0,87278.0,0.6105]
[1742904582262,0.1913613,87279.0,87278.0,0.3505]
[1742904585361,0.1145679,87274.0,87273.0,0.00017187]
[1742904585575,0.1161679,87274.0,87273.0,0.00017187]
[1742904585877,0.1903679,87274.0,87273.0,0.00017187]
[1742904586167,0.1903679,87274.0,87273.0,0.25017187]
[1742904586362,0.1903679,87274.0,87273.0,0.00017187]
[1742904586558,0.1913679,87274.0,87273.0,0.00017187]
[1742904586959,0.1923679,87274.0,87273.0,0.00017187]
[1742904587171,0.1913679,87274.0,87273.0,0.00017187]
[1742904587662,0.114581,87264.0,87246.0,0.0573018]
[1742904587862,0.114581,87264.0,87241.0,1.17500255]
[1742904587863,0.476981,87264.0,87257.0,0.0359]
[1742904588104,0.476981,87264.0,87255.0,0.0363]
[1742904588272,0.1145941,87254.0,87253.0,0.20579566]
[1742904588469,0.4753941,87254.0,87253.0,0.22579566]
[1742904588673,0.5474941,87254.0,87253.0,0.22579566]
[1742904589959,0.5484941,87254.0,87253.0,0.29589566]
[1742904590578,0.5484941,87254.0,87253.0,0.41049106]
[1742904590765,0.5468941,87254.0,87253.0,0.41049106]
[1742904590966,0.5468941,87254.0,87253.0,0.44489106]
[1742904591166,0.5478941,87254.0,87253.0,0.44489106]
[1742904591367,0.002,87254.0,87253.0,0.44489106]
[1742904592161,0.002,87254.0,87253.0,1.94489106]
[1742904592570,0.002,87254.0,87253.0,1.7390954]
[1742904593868,0.002,87254.0,87253.0,1.75443545]
[1742904594477,0.002,87254.0,87253.0,1.7390954]
[1742904596173,0.002,87254.0,87253.0,1.75439552]
[1742904596378,0.00017187,87262.0,87261.0,0.1145849]
[1742904596572,0.00177187,87262.0,87261.0,1.1226649]
[1742904596773,0.00017187,87262.0,87261.0,1.1933649]
[1742904597573,0.00117187,87262.0,87261.0,1.1931649]
[1742904598274,0.00117187,87262.0,87261.0,1.0660849]
[1742904598479,0.11575547,87262.0,87261.0,0.6815]
[1742904598679,0.11739547,87262.0,87261.0,0.55846]
[1742904598875,0.1718905,87255.0,87254.0,0.114594]
[1742904599080,0.1735292,87255.0,87254.0,0.1117]
[1742904599673,0.2485292,87255.0,87254.0,0.1117]
[1742904599869,0.2485292,87255.0,87254.0,0.2262941]
[1742904600074,0.2495292,87255.0,87254.0,0.2282941]
[1742904600272,0.2505292,87255.0,87254.0,0.1157]
[1742904600675,0.2505292,87255.0,87254.0,0.044]
[1742904602187,0.2505292,87255.0,87254.0,0.004]
[1742904602372,0.6113292,87255.0,87254.0,0.044]
[1742904603779,0.74788856,87255.0,87254.0,0.044]
[1742904605081,0.114602,87248.0,87247.0,0.00045847]
[1742904605387,0.475402,87248.0,87247.0,0.00045847]
[1742904605588,0.477002,87248.0,87247.0,0.00045847]
[1742904605885,0.553102,87248.0,87247.0,0.00045847]
[1742904606879,0.554102,87248.0,87247.0,0.00045847]
[1742904607277,0.555102,87248.0,87247.0,0.00045847]
[1742904607579,0.554102,87248.0,87247.0,0.00045847]
[1742904607781,0.554102,87248.0,87247.0,0.27045847]
[1742904607978,0.554102,87248.0,87247.0,0.25045847]
[1742904608182,0.554102,87248.0,87247.0,0.00045847]
[1742904611392,0.1146086,87243.0,87242.0,0.0379]
[1742904611589,0.1162486,87243.0,87242.0,0.0379]
[1742904611791,0.1917486,87243.0,87242.0,0.0379]
[1742904612294,0.1146112,87241.0,87240.0,0.0373]
[1742904612493,0.1162112,87241.0,87240.0,0.2673]
[1742904612694,0.1917112,87241.0,87240.0,0.2673]
[1742904613896,0.1927112,87241.0,87240.0,0.2673]
[1742904614690,0.1937112,87241.0,87240.0,0.2673]
[1742904615692,0.1937112,87241.0,87240.0,0.0373]
[1742904616787,0.1937112,87241.0,87240.0,0.2773]
[1742904617100,0.1937112,87241.0,87240.0,0.0373]
[1742904617584,0.1146178,87236.0,87235.0,0.0359]
[1742904617989,0.1162178,87236.0,87235.0,0.3059]
[1742904618290,0.1934178,87236.0,87235.0,0.3059]
[1742904618887,0.1944178,87236.0,87235.0,0.3059]
[1742904620000,0.33200803,87236.0,87235.0,0.3059]
[1742904620401,0.33200803,87236.0,87235.0,0.2959]